fUSD/lending_fUSD_20250812
["ID","MTS","AMOUNT","RATE_DAILY","PERIOD"]
[378778772,1755013312089,-155.0,0.000427,120]
[378778773,1755013312196,-261.85,0.000427,120]
[378778774,1755013312318,-221.8003096,0.00043,120]
[378778775,1755013312418,-999.0,0.0004301,120]
[378778776,1755013312530,-1614.1185956,0.00043287,61]
[378778777,1755013312619,-536.99020552,0.00043287,120]
[378778778,1755013312727,-886.55,0.00043444,60]
[378778779,1755013312821,-363.5,0.00043513,120]
[378778780,1755013312936,-371.2,0.00043766,120]
[378778781,1755013313030,-195.72279184,0.00043775,120]
[378778782,1755013313135,-153.0,0.000438,120]
[378778783,1755013313237,-200.0,0.00043834,120]
[378778784,1755013313336,-400.0,0.00043835,120]
[378778785,1755013313439,-400.0,0.00043835,120]
[378778786,1755013313543,-400.0,0.00043835,120]
[378778787,1755013313645,-400.0,0.00043835,120]
[378778788,1755013313745,-436.61,0.00043835,120]
[378778789,1755013313850,-5555.72,0.00043835,120]
[378778790,1755013313948,-469.66,0.00043835,120]
[378778791,1755013314041,-431.3,0.00043835,120]
[378778792,1755013314138,-441.84,0.00043835,120]
[378778793,1755013314232,-936.01,0.00043835,120]
[378778794,1755013314323,-543.43,0.00043835,120]
[378778795,1755013314412,-428.32,0.00043835,120]
[378778796,1755013314504,-731.55,0.00043835,120]
[378778797,1755013314599,-400.0,0.00043835,120]
[378778798,1755013314695,-497.62,0.00043835,120]
[378778799,1755013314790,-426.82,0.00043835,120]
[378778800,1755013314883,-496.02,0.00043835,120]
[378778801,1755013314976,-1703.29,0.00043835,120]
[378778802,1755013315076,-493.55,0.00043835,120]
[378778803,1755013315173,-517.63,0.00043835,120]
[378778804,1755013315266,-617.08,0.00043835,120]
[378778805,1755013315360,-456.44,0.00043835,120]
[378778806,1755013315455,-400.0,0.00043835,120]
[378778807,1755013315549,-400.0,0.00043835,120]
[378778808,1755013315650,-400.0,0.00043835,120]
[378778809,1755013315747,-449.38,0.00043835,120]
[378778810,1755013315839,-400.0,0.00043835,120]
[378778811,1755013315936,-400.0,0.00043835,120]
[378778812,1755013316029,-433.02,0.00043835,120]
[378778813,1755013316123,-233.91,0.00043835,120]
[378778814,1755013316217,-482.81,0.00043835,120]
[378778815,1755013316308,-400.0,0.00043835,120]
[378778816,1755013316406,-738.0,0.00043835,120]
[378778817,1755013316503,-400.0,0.00043835,120]
[378778818,1755013316602,-400.0,0.00043835,120]
[378778819,1755013316701,-400.0,0.00043835,120]
[378778820,1755013316796,-400.0,0.00043835,120]
[378778821,1755013316894,-490.46,0.00043835,120]
[378778822,1755013316992,-400.0,0.00043835,120]
[378778823,1755013317090,-478.33,0.00043835,120]
[378778824,1755013317193,-400.0,0.00043835,120]
[378778825,1755013317285,-153.57,0.00043835,120]
[378778826,1755013317376,-400.0,0.00043835,120]
[378778827,1755013317472,-400.0,0.00043835,120]
[378778828,1755013317568,-1006.51,0.00043835,120]
[378778829,1755013317667,-659.26,0.00043835,120]
[378778830,1755013317758,-593.41,0.00043835,120]
[378778831,1755013317845,-400.0,0.00043835,120]
[378778832,1755013317936,-749.57,0.00043835,120]
[378778833,1755013318030,-840.93,0.00043835,120]
[378778834,1755013318118,-400.0,0.00043835,120]
[378778835,1755013318209,-400.0,0.00043835,120]
[378778836,1755013318305,-1400.07,0.00043835,120]
[378778837,1755013318389,-400.0,0.00043835,120]
[378778838,1755013318479,-400.0,0.00043835,120]
[378778839,1755013318567,-400.0,0.00043835,120]
[378778840,1755013318655,-400.0,0.00043835,120]
[378778841,1755013318741,-219.68,0.00043835,120]
[378778842,1755013318832,-581.66,0.00043835,120]
[378778843,1755013318923,-400.0,0.00043835,120]
[378778844,1755013319016,-772.33,0.00043835,120]
[378778845,1755013319114,-579.73,0.00043835,120]
[378778846,1755013319201,-602.52,0.00043835,120]
[378778847,1755013319290,-417.24,0.00043835,120]
[378778848,1755013319384,-692.55,0.00043835,120]
[378778849,1755013319684,-400.0,0.00043835,120]
[378778850,1755013319780,-541.24,0.00043835,120]
[378778851,1755013319872,-400.0,0.00043835,120]
[378778852,1755013319967,-400.0,0.00043835,120]
[378778854,1755013320061,-400.0,0.00043835,120]
[378778855,1755013320157,-400.0,0.00043835,120]
[378778856,1755013320259,-577.35,0.00043835,120]
[378778857,1755013320359,-559.48,0.00043835,120]
[378778858,1755013320464,-400.0,0.00043835,120]
[378778859,1755013320567,-493.68,0.00043835,120]
[378778860,1755013320672,-631.28,0.00043835,120]
[378778861,1755013320771,-409.48,0.00043835,120]
[378778862,1755013320863,-543.95,0.00043835,120]
[378778863,1755013320957,-657.22,0.00043835,120]
[378778864,1755013321050,-400.0,0.00043835,120]
[378778865,1755013321141,-558.83,0.00043835,120]
[378778866,1755013321231,-400.0,0.00043835,120]
[378778867,1755013321320,-400.0,0.00043835,120]
[378778868,1755013321413,-400.0,0.00043835,120]
[378778869,1755013321507,-400.0,0.00043835,120]
[378778870,1755013321604,-474.08,0.00043835,120]
[378778871,1755013321707,-417.22,0.00043835,120]
[378778872,1755013321803,-417.25,0.00043835,120]
[378778873,1755013321903,-400.0,0.00043835,120]
[378778874,1755013322008,-843.11,0.00043835,120]
[378778875,1755013322104,-400.0,0.00043835,120]
[378778876,1755013322203,-400.0,0.00043835,120]
[378778877,1755013322309,-1157.06,0.00043835,120]
[378778878,1755013322410,-400.0,0.00043835,120]
[378778879,1755013322511,-400.0,0.00043835,120]
[378778880,1755013322622,-400.0,0.00043835,120]
[378778881,1755013322732,-702.0,0.00043835,120]
[378778882,1755013322838,-400.0,0.00043835,120]
[378778883,1755013322945,-423.06,0.00043835,120]
[378778884,1755013323055,-974.95,0.00043835,120]
[378778885,1755013323166,-400.0,0.00043835,120]
[378778886,1755013323279,-400.0,0.00043835,120]
[378778887,1755013323391,-408.23,0.00043835,120]
[378778888,1755013323505,-483.36,0.00043835,120]
[378778889,1755013323619,-400.0,0.00043835,120]
[378778890,1755013323730,-631.67,0.00043835,120]
[378778892,1755013323836,-1961.58,0.00043835,120]
[378778893,1755013323945,-400.0,0.00043835,120]
[378778894,1755013324050,-409.05,0.00043835,120]
[378778895,1755013324154,-954.42,0.00043835,120]
[378778896,1755013324260,-649.55,0.00043835,120]
[378778897,1755013324359,-518.43,0.00043835,120]
[378778898,1755013324462,-424.3,0.00043835,120]
[378778899,1755013324561,-400.0,0.00043835,120]
[378778900,1755013324656,-750.62,0.00043835,120]
[378778901,1755013324759,-419.92,0.00043835,120]
[378778902,1755013324855,-400.0,0.00043835,120]
[378778903,1755013324953,-465.19,0.00043835,120]
[378778905,1755013325050,-166.932657,0.00043835,120]
[378778906,1755013325145,-552.57,0.00043835,120]
[378778907,1755013325242,-339.727935,0.00043835,120]
[378778908,1755013325336,-445.06,0.00043835,120]
[378778909,1755013325430,-655.15,0.00043835,120]
[378778910,1755013325525,-400.0,0.00043835,120]
[378778911,1755013325629,-894.77,0.00043835,120]
[378778912,1755013325727,-486.56,0.00043835,120]
[378778913,1755013325829,-445.06,0.00043835,120]
[378778914,1755013325933,-660.44,0.00043835,120]
[378778915,1755013326033,-478.96,0.00043835,120]
[378778916,1755013326130,-522.26,0.00043835,120]
[378778917,1755013326229,-519.01,0.00043835,120]
[378778918,1755013326324,-489.54,0.00043835,120]
[378778919,1755013326421,-400.0,0.00043835,120]
[378778920,1755013326518,-419.82,0.00043835,120]
[378778921,1755013326618,-400.0,0.00043835,120]
[378778922,1755013326713,-400.0,0.00043835,120]
[378778923,1755013326799,-656.99,0.00043835,120]
[378778924,1755013326893,-409.03,0.00043835,120]
[378778925,1755013326988,-687.26,0.00043835,120]
[378778926,1755013327085,-417.48,0.00043835,120]
[378778927,1755013327180,-338.659071,0.00043835,120]
[378778928,1755013327271,-430.22,0.00043835,120]
[378778929,1755013327370,-400.0,0.00043835,120]
[378778930,1755013327478,-1801.5,0.00043835,120]
[378778931,1755013327581,-400.0,0.00043835,120]
[378778932,1755013327686,-618.64,0.00043835,120]
[378778933,1755013327787,-573.67,0.00043835,120]
[378778934,1755013327885,-4790.26,0.00043835,120]
[378778935,1755013327989,-441.56,0.00043835,120]
[378778936,1755013328089,-404.67,0.00043835,120]
[378778937,1755013328190,-495.68,0.00043835,120]
[378778938,1755013328297,-400.0,0.00043835,120]
[378778939,1755013328398,-416.73,0.00043835,120]
[378778940,1755013328503,-400.0,0.00043835,120]
[378778941,1755013328605,-400.0,0.00043835,120]
[378778942,1755013328707,-400.0,0.00043835,120]
[378778943,1755013328808,-412.2,0.00043835,120]
[378778944,1755013328909,-400.0,0.00043835,120]
[378778945,1755013329007,-465.29,0.00043835,120]
[378778946,1755013329108,-516.1,0.00043835,120]
[378778947,1755013329213,-732.64,0.00043835,120]
[378778948,1755013329314,-400.0,0.00043835,120]
[378778949,1755013329420,-400.0,0.00043835,120]
[378778950,1755013329524,-400.0,0.00043835,120]
[378778951,1755013329628,-511.3,0.00043835,120]
[378778952,1755013329730,-400.0,0.00043835,120]
[378778953,1755013329829,-640.88,0.00043835,120]
[378778954,1755013329924,-400.0,0.00043835,120]
[378778955,1755013330032,-400.0,0.00043835,120]
[378778956,1755013330135,-708.84,0.00043835,120]
[378778957,1755013330227,-400.0,0.00043835,120]
[378778958,1755013330323,-673.79,0.00043835,120]
[378778959,1755013330415,-400.0,0.00043835,120]
[378778960,1755013330506,-400.0,0.00043835,120]
[378778961,1755013330599,-400.0,0.00043835,120]
[378778962,1755013330698,-778.6,0.00043835,120]
[378778963,1755013330792,-532.61,0.00043835,120]
[378778964,1755013330882,-527.12,0.00043835,120]
[378778965,1755013330977,-440.23,0.00043835,120]
[378778966,1755013331068,-594.96,0.00043835,120]
[378778967,1755013331160,-979.17,0.00043835,120]
[378778968,1755013331252,-400.0,0.00043835,120]
[378778969,1755013331341,-400.0,0.00043835,120]
[378778970,1755013331578,-400.0,0.00043835,120]
[378778971,1755013331676,-945.69,0.00043835,120]
[378778972,1755013331767,-400.0,0.00043835,120]
[378778973,1755013331856,-400.0,0.00043835,120]
[378778974,1755013331954,-400.0,0.00043835,120]
[378778975,1755013332054,-603.68,0.00043835,120]
[378778976,1755013332155,-438.19,0.00043835,120]
[378778977,1755013332255,-449.47,0.00043835,120]
[378778978,1755013332355,-400.0,0.00043835,120]
[378778979,1755013332454,-400.0,0.00043835,120]
[378778980,1755013332547,-565.39,0.00043835,120]
[378778981,1755013332641,-400.0,0.00043835,120]
[378778982,1755013332739,-400.0,0.00043835,120]
[378778983,1755013332840,-1026.08,0.00043835,120]
[378778984,1755013332943,-635.45,0.00043835,120]
[378778985,1755013333041,-764.59,0.00043835,120]
[378778986,1755013333139,-400.0,0.00043835,120]
[378778987,1755013333238,-658.03,0.00043835,120]
[378778988,1755013333339,-400.0,0.00043835,120]
[378778989,1755013333443,-568.21,0.00043835,120]
[378778990,1755013333557,-683.24,0.00043835,120]
[378778991,1755013333663,-400.0,0.00043835,120]
[378778992,1755013333762,-400.0,0.00043835,120]
[378778993,1755013333860,-400.0,0.00043835,120]
[378778994,1755013333959,-400.0,0.00043835,120]
[378778995,1755013334058,-414.42,0.00043835,120]
[378778996,1755013334155,-430.24,0.00043835,120]
[378778997,1755013334252,-606.5,0.00043835,120]
[378778998,1755013334342,-400.0,0.00043835,120]
[378778999,1755013334427,-646.39,0.00043835,120]
[378779000,1755013334516,-509.68,0.00043835,120]
[378779001,1755013334606,-400.0,0.00043835,120]
[378779002,1755013334694,-400.0,0.00043835,120]
[378779003,1755013334783,-837.81,0.00043835,120]
[378779004,1755013334878,-1018.49,0.00043835,120]
[378779005,1755013334965,-400.0,0.00043835,120]
[378779006,1755013335059,-400.0,0.00043835,120]
[378779007,1755013335151,-400.0,0.00043835,120]
[378779008,1755013335238,-577.84,0.00043835,120]
[378779009,1755013335336,-415.91,0.00043835,120]
[378779010,1755013335433,-400.0,0.00043835,120]
[378779011,1755013335536,-471.4,0.00043835,120]
[378779012,1755013335637,-400.0,0.00043835,120]
[378779013,1755013335738,-492.65,0.00043835,120]
[378779014,1755013335836,-400.0,0.00043835,120]
[378779015,1755013335938,-454.89,0.00043835,120]
[378779016,1755013336035,-400.0,0.00043835,120]
[378779017,1755013336134,-884.68,0.00043835,120]
[378779018,1755013336228,-458.27,0.00043835,120]
[378779019,1755013336322,-788.42,0.00043835,120]
[378779020,1755013336418,-1034.47,0.00043835,120]
[378779021,1755013336510,-400.0,0.00043835,120]
[378779022,1755013336601,-1071.0,0.00043835,120]
[378779023,1755013336696,-1133.61,0.00043835,120]
[378779024,1755013336786,-400.0,0.00043835,120]
[378779025,1755013336879,-462.67,0.00043835,120]
[378779026,1755013336977,-984.38,0.00043835,120]
[378779027,1755013337068,-884.11,0.00043835,120]
[378779028,1755013337163,-400.0,0.00043835,120]
[378779029,1755013337260,-400.0,0.00043835,120]
[378779030,1755013337352,-848.6,0.00043835,120]
[378779031,1755013337447,-555.13,0.00043835,120]
[378779032,1755013337546,-1339.73,0.00043835,120]
[378779033,1755013337649,-483.91,0.00043835,120]
[378779034,1755013337750,-1109.65,0.00043835,120]
[378779035,1755013337851,-400.0,0.00043835,120]
[378779036,1755013337951,-402.94,0.00043835,120]
[378779037,1755013338050,-400.0,0.00043835,120]
[378779038,1755013338153,-619.16,0.00043835,120]
[378779039,1755013338252,-1023.43,0.00043835,120]
[378779040,1755013338350,-400.0,0.00043835,120]
[378779041,1755013338451,-400.0,0.00043835,120]
[378779042,1755013338550,-400.0,0.00043835,120]
[378779043,1755013338648,-410.83,0.00043835,120]
[378779044,1755013338741,-811.14,0.00043835,120]
[378779045,1755013338838,-487.79,0.00043835,120]
[378779046,1755013338936,-560.93,0.00043835,120]
[378779047,1755013339034,-400.0,0.00043835,120]
[378779048,1755013339137,-400.0,0.00043835,120]
[378779049,1755013339236,-400.0,0.00043835,120]
[378779050,1755013339336,-22841.99533823,0.00044,60]
[378779051,1755013339433,-637.2771864,0.00044,70]
[378779052,1755013339534,-100000.0,0.00044,120]
[378779053,1755013339638,-100000.0,0.00044,120]
[378779054,1755013339733,-100000.0,0.00044,120]
[378779055,1755013339829,-100000.0,0.00044,120]
[378779056,1755013339924,-40917.66569428,0.00044,120]
[378779057,1755013340021,-100000.0,0.00044,120]
[378779058,1755013340118,-100000.0,0.00044,120]
[378779059,1755013340217,-100000.0,0.00044,120]
[378779060,1755013340310,-100000.0,0.00044,120]
[378779061,1755013340404,-100000.0,0.00044,120]
[378779062,1755013340504,-98691.7743283,0.00044,120]
[378779063,1755013340602,-371.2,0.00044019,120]
[378779064,1755013340701,-999.0,0.00044106,120]
[378779065,1755013340794,-400.0,0.00044109,120]
[378779066,1755013340890,-400.0,0.00044109,120]
[378779067,1755013340987,-400.0,0.00044109,120]
[378779068,1755013341079,-198.74,0.00044109,120]
[378779069,1755013341173,-436.61,0.00044109,120]
[378779070,1755013341265,-5555.72,0.00044109,120]
[378779071,1755013341355,-469.66,0.00044109,120]
[378779072,1755013341458,-431.3,0.00044109,120]
[378779073,1755013341552,-441.84,0.00044109,120]
[378779074,1755013341646,-936.01,0.00044109,120]
[378779075,1755013341741,-428.32,0.00044109,120]
[378779076,1755013341836,-731.55,0.00044109,120]
[378779077,1755013341934,-400.0,0.00044109,120]
[378779078,1755013342034,-497.62,0.00044109,120]
[378779079,1755013342143,-496.02,0.00044109,120]
[378779080,1755013342249,-1703.29,0.00044109,120]
[378779081,1755013342344,-493.55,0.00044109,120]
[378779082,1755013342441,-517.63,0.00044109,120]
[378779083,1755013342538,-617.08,0.00044109,120]
[378779084,1755013342639,-456.44,0.00044109,120]
[378779085,1755013342736,-400.0,0.00044109,120]
[378779086,1755013342993,-400.0,0.00044109,120]
[378779087,1755013343093,-400.0,0.00044109,120]
[378779088,1755013343188,-449.38,0.00044109,120]
[378779089,1755013343292,-400.0,0.00044109,120]
[378779090,1755013343404,-400.0,0.00044109,120]
[378779091,1755013343517,-400.0,0.00044109,120]
[378779092,1755013343630,-482.81,0.00044109,120]
[378779093,1755013343749,-738.0,0.00044109,120]
[378779094,1755013343861,-400.0,0.00044109,120]
[378779095,1755013343971,-400.0,0.00044109,120]
[378779096,1755013344082,-400.0,0.00044109,120]
[378779097,1755013344192,-400.0,0.00044109,120]
[378779098,1755013344301,-400.0,0.00044109,120]
[378779099,1755013344417,-478.33,0.00044109,120]
[378779100,1755013344530,-400.0,0.00044109,120]
[378779101,1755013344643,-400.0,0.00044109,120]
[378779102,1755013344756,-400.0,0.00044109,120]
[378779103,1755013344869,-1006.51,0.00044109,120]
[378779104,1755013344991,-659.26,0.00044109,120]
[378779105,1755013345101,-593.41,0.00044109,120]
[378779106,1755013345213,-400.0,0.00044109,120]
[378779107,1755013345316,-749.57,0.00044109,120]
[378779108,1755013345414,-400.0,0.00044109,120]
[378779109,1755013345512,-400.0,0.00044109,120]
[378779110,1755013345618,-1400.07,0.00044109,120]
[378779111,1755013345722,-840.93,0.00044109,120]
[378779112,1755013345823,-259.71,0.00044109,120]
[378779113,1755013345926,-422.02,0.00044109,120]
[378779114,1755013346027,-400.0,0.00044109,120]
[378779115,1755013346125,-400.0,0.00044109,120]
[378779116,1755013346223,-581.66,0.00044109,120]
[378779117,1755013346320,-400.0,0.00044109,120]
[378779118,1755013346418,-772.33,0.00044109,120]
[378779119,1755013346520,-579.73,0.00044109,120]
[378779120,1755013346619,-602.52,0.00044109,120]
[378779121,1755013346724,-417.24,0.00044109,120]
[378779122,1755013346833,-400.0,0.00044109,120]
[378779123,1755013346937,-692.55,0.00044109,120]
[378779124,1755013347043,-541.24,0.00044109,120]
[378779125,1755013347142,-400.0,0.00044109,120]
[378779126,1755013347241,-400.0,0.00044109,120]
[378779127,1755013347343,-400.0,0.00044109,120]
[378779128,1755013347439,-400.0,0.00044109,120]
[378779129,1755013347532,-577.35,0.00044109,120]
[378779130,1755013347631,-559.48,0.00044109,120]
[378779131,1755013347735,-400.0,0.00044109,120]
[378779132,1755013347833,-493.68,0.00044109,120]
[378779133,1755013347934,-631.28,0.00044109,120]
[378779134,1755013348035,-657.22,0.00044109,120]
[378779135,1755013348137,-400.0,0.00044109,120]
[378779136,1755013348240,-558.83,0.00044109,120]
[378779137,1755013348336,-400.0,0.00044109,120]
[378779138,1755013348438,-400.0,0.00044109,120]
[378779139,1755013348534,-400.0,0.00044109,120]
[378779140,1755013348638,-400.0,0.00044109,120]
[378779141,1755013348742,-474.08,0.00044109,120]
[378779142,1755013348847,-417.22,0.00044109,120]
[378779143,1755013348949,-417.25,0.00044109,120]
[378779144,1755013349046,-184.1,0.00044109,120]
[378779145,1755013349153,-843.11,0.00044109,120]
[378779146,1755013349253,-400.0,0.00044109,120]
[378779147,1755013349353,-400.0,0.00044109,120]
[378779148,1755013349456,-1157.06,0.00044109,120]
[378779149,1755013349553,-400.0,0.00044109,120]
[378779150,1755013349656,-400.0,0.00044109,120]
[378779151,1755013349755,-400.0,0.00044109,120]
[378779152,1755013349846,-702.0,0.00044109,120]
[378779153,1755013349938,-525.06,0.00044109,120]
[378779154,1755013350032,-423.06,0.00044109,120]
[378779155,1755013350123,-974.95,0.00044109,120]
[378779156,1755013350229,-400.0,0.00044109,120]
[378779157,1755013350324,-400.0,0.00044109,120]
[378779158,1755013350413,-408.23,0.00044109,120]
[378779159,1755013350504,-483.36,0.00044109,120]
[378779160,1755013350599,-400.0,0.00044109,120]
[378779161,1755013350699,-631.67,0.00044109,120]
[378779162,1755013350795,-1961.58,0.00044109,120]
[378779163,1755013350891,-400.0,0.00044109,120]
[378779164,1755013350986,-409.05,0.00044109,120]
[378779165,1755013351075,-954.42,0.00044109,120]
[378779166,1755013351167,-649.55,0.00044109,120]
[378779167,1755013351263,-518.43,0.00044109,120]
[378779168,1755013351357,-400.0,0.00044109,120]
[378779169,1755013351456,-750.62,0.00044109,120]
[378779170,1755013351553,-419.92,0.00044109,120]
[378779171,1755013351650,-400.0,0.00044109,120]
[378779172,1755013351749,-465.19,0.00044109,120]
[378779173,1755013351839,-166.932657,0.00044109,120]
[378779174,1755013351930,-552.57,0.00044109,120]
[378779175,1755013352029,-339.727935,0.00044109,120]
[378779176,1755013352126,-445.06,0.00044109,120]
[378779177,1755013352223,-655.15,0.00044109,120]
[378779178,1755013352323,-400.0,0.00044109,120]
[378779179,1755013352425,-894.77,0.00044109,120]
[378779180,1755013352522,-486.56,0.00044109,120]
[378779181,1755013352620,-445.06,0.00044109,120]
[378779182,1755013352721,-660.44,0.00044109,120]
[378779183,1755013352823,-478.96,0.00044109,120]
[378779184,1755013352920,-522.26,0.00044109,120]
[378779185,1755013353017,-519.01,0.00044109,120]
[378779186,1755013353117,-489.54,0.00044109,120]
[378779187,1755013353218,-400.0,0.00044109,120]
[378779188,1755013353316,-419.82,0.00044109,120]
[378779189,1755013353414,-400.0,0.00044109,120]
[378779190,1755013353520,-400.0,0.00044109,120]
[378779191,1755013353636,-656.99,0.00044109,120]
[378779192,1755013353745,-409.03,0.00044109,120]
[378779193,1755013353853,-687.26,0.00044109,120]
[378779194,1755013353958,-338.659071,0.00044109,120]
[378779195,1755013354057,-430.22,0.00044109,120]
[378779196,1755013354158,-400.0,0.00044109,120]
[378779197,1755013354258,-1801.5,0.00044109,120]
[378779198,1755013354349,-288.12,0.00044109,120]
[378779199,1755013354447,-618.64,0.00044109,120]
[378779200,1755013354536,-573.67,0.00044109,120]
[378779201,1755013354632,-4790.26,0.00044109,120]
[378779202,1755013354724,-441.56,0.00044109,120]
[378779203,1755013354996,-404.67,0.00044109,120]
[378779204,1755013355094,-495.68,0.00044109,120]
[378779205,1755013355191,-400.0,0.00044109,120]
[378779206,1755013355281,-416.73,0.00044109,120]
[378779207,1755013355376,-400.0,0.00044109,120]
[378779208,1755013355474,-400.0,0.00044109,120]
[378779209,1755013355572,-400.0,0.00044109,120]
[378779210,1755013355676,-412.2,0.00044109,120]
[378779211,1755013355776,-400.0,0.00044109,120]
[378779212,1755013355878,-465.29,0.00044109,120]
[378779213,1755013355978,-516.1,0.00044109,120]
[378779214,1755013356068,-732.64,0.00044109,120]
[378779215,1755013356164,-400.0,0.00044109,120]
[378779216,1755013356258,-400.0,0.00044109,120]
[378779217,1755013356346,-400.0,0.00044109,120]
[378779218,1755013356439,-511.3,0.00044109,120]
[378779219,1755013356539,-400.0,0.00044109,120]
[378779220,1755013356635,-640.88,0.00044109,120]
[378779221,1755013356734,-400.0,0.00044109,120]
[378779222,1755013356827,-400.0,0.00044109,120]
[378779223,1755013356922,-708.84,0.00044109,120]
[378779224,1755013357019,-400.0,0.00044109,120]
[378779225,1755013357117,-673.79,0.00044109,120]
[378779226,1755013357215,-400.0,0.00044109,120]
[378779227,1755013357306,-400.0,0.00044109,120]
[378779228,1755013357402,-400.0,0.00044109,120]
[378779229,1755013357506,-778.6,0.00044109,120]
[378779230,1755013357608,-532.61,0.00044109,120]
[378779231,1755013357717,-527.12,0.00044109,120]
[378779232,1755013357814,-440.23,0.00044109,120]
[378779233,1755013357912,-594.96,0.00044109,120]
[378779234,1755013358011,-979.17,0.00044109,120]
[378779235,1755013358104,-400.0,0.00044109,120]
[378779236,1755013358199,-400.0,0.00044109,120]
[378779237,1755013358290,-400.0,0.00044109,120]
[378779238,1755013358381,-945.69,0.00044109,120]
[378779239,1755013358477,-400.0,0.00044109,120]
[378779240,1755013358567,-400.0,0.00044109,120]
[378779241,1755013358663,-400.0,0.00044109,120]
[378779242,1755013358764,-603.68,0.00044109,120]
[378779243,1755013358862,-438.19,0.00044109,120]
[378779244,1755013358951,-449.47,0.00044109,120]
[378779245,1755013359043,-397.24,0.00044109,120]
[378779246,1755013359133,-400.0,0.00044109,120]
[378779247,1755013359221,-565.39,0.00044109,120]
[378779248,1755013359322,-400.0,0.00044109,120]
[378779249,1755013359421,-502.23,0.00044109,120]
[378779250,1755013359522,-1026.08,0.00044109,120]
[378779251,1755013359628,-635.45,0.00044109,120]
[378779252,1755013359733,-764.59,0.00044109,120]
[378779253,1755013359832,-400.0,0.00044109,120]
[378779254,1755013359933,-658.03,0.00044109,120]
[378779255,1755013360034,-400.0,0.00044109,120]
[378779256,1755013360135,-568.21,0.00044109,120]
[378779257,1755013360239,-683.24,0.00044109,120]
[378779258,1755013360332,-400.0,0.00044109,120]
[378779259,1755013360437,-400.0,0.00044109,120]
[378779260,1755013360537,-400.0,0.00044109,120]
[378779261,1755013360634,-400.0,0.00044109,120]
[378779262,1755013360732,-414.42,0.00044109,120]
[378779263,1755013360827,-430.24,0.00044109,120]
[378779264,1755013360918,-606.5,0.00044109,120]
[378779265,1755013361015,-250.56,0.00044109,120]
[378779266,1755013361107,-646.39,0.00044109,120]
[378779267,1755013361192,-509.68,0.00044109,120]
[378779268,1755013361280,-400.0,0.00044109,120]
[378779269,1755013361370,-400.0,0.00044109,120]
[378779270,1755013361461,-837.81,0.00044109,120]
[378779271,1755013361550,-1018.49,0.00044109,120]
[378779272,1755013361652,-400.0,0.00044109,120]
[378779273,1755013361753,-443.89608616,0.00044109,120]
[378779274,1755013361849,-577.84,0.00044109,120]